fUSD/lending_fUSD_20241223
["ID","MTS","AMOUNT","RATE_DAILY","PERIOD"]
[346416830,1734952243475,-4755.476,0.00019078,2]
[346416831,1734952243484,-220.374,0.00019078,2]
[346416832,1734952243494,-401.28803824,0.00019078,2]
[346416833,1734952243503,-56911.7236,0.00019078,2]
[346416834,1734952243512,-202.94,0.00019078,2]
[346416835,1734952243522,-200.72,0.00019078,2]
[346416836,1734952243531,-203.7,0.00019078,2]
[346416837,1734952243541,-203.78,0.00019078,2]
[346416838,1734952243550,-201.65,0.00019078,2]
[346416840,1734952243559,-202.81,0.00019078,2]
[346416842,1734952243568,-1500.0,0.00019078,2]
[346416844,1734952243577,-5124.0635,0.00019078,2]
[346416846,1734952243586,-200.0,0.00019078,2]
[346416847,1734952243595,-308.7417,0.00019078,2]
[346416848,1734952243604,-201.47,0.00019078,2]
[346416849,1734952243614,-202.66,0.00019078,2]
[346416850,1734952243623,-5000.0,0.00019078,2]
[346416851,1734952243632,-5393.46270264,0.000191,2]
[346416852,1734952243642,-3285.0,0.000191,2]
[346416853,1734952243650,-607.77339553,0.00019107,2]
[346416854,1734952243660,-607.77339553,0.00019156,2]
[346416855,1734952243669,-152.0,0.00019158,3]
[346416856,1734952243677,-200.33652005,0.00019173,2]
[346416857,1734952243687,-198.84305346,0.00019173,2]
[346416858,1734952243696,-202.73195084,0.00019173,2]
[346416859,1734952243705,-500.0,0.00019173,2]
[346416860,1734952243715,-500.0,0.00019177,2]
[346416861,1734952243724,-314.38806795,0.00019177,2]
[346416862,1734952243733,-500.0,0.00019177,2]
[346416863,1734952243742,-500.0,0.00019177,2]
[346416864,1734952243751,-500.0,0.00019177,2]
[346416865,1734952243761,-500.0,0.00019177,2]
[346416866,1734952243770,-500.0,0.00019177,2]
[346416867,1734952243779,-500.0,0.00019177,2]
[346416868,1734952243788,-500.0,0.00019177,2]
[346416869,1734952243798,-205.47480969,0.00019177,2]
[346416870,1734952243807,-500.0,0.00019177,2]
[346416871,1734952243816,-500.0,0.00019177,2]
[346416872,1734952243826,-500.0,0.00019177,2]
[346416873,1734952243835,-374.5258782,0.00019177,2]
[346416874,1734952243844,-500.0,0.00019177,2]
[346416875,1734952243853,-396.47183522,0.00019177,2]
[346416876,1734952243862,-500.0,0.00019177,2]
[346416877,1734952243871,-500.0,0.00019177,2]
[346416878,1734952243880,-577.01077229,0.00019177,2]
[346416879,1734952243889,-500.0,0.00019177,2]
[346416880,1734952243898,-161.34149076,0.00019177,2]
[346416881,1734952243908,-500.0,0.00019177,2]
[346416882,1734952243919,-500.0,0.00019177,2]
[346416883,1734952243928,-500.0,0.00019177,2]
[346416884,1734952243937,-500.0,0.00019177,2]
[346416885,1734952243946,-500.0,0.00019177,2]
[346416886,1734952243955,-500.0,0.00019177,2]
[346416887,1734952243965,-500.0,0.00019177,2]
[346416888,1734952243974,-601.31805449,0.00019178,2]
[346416889,1734952243983,-500.0,0.00019178,2]
[346416890,1734952243992,-500.0,0.00019178,2]
[346416891,1734952244001,-500.0,0.00019178,2]
[346416892,1734952244010,-256.83844156,0.00019178,2]
[346416893,1734952244020,-500.0,0.00019178,2]
[346416894,1734952244030,-478.31733956,0.00019178,2]
[346416895,1734952244040,-500.0,0.00019178,2]
[346416896,1734952244050,-500.0,0.00019178,2]
[346416897,1734952244059,-500.0,0.00019178,2]
[346416898,1734952244069,-500.0,0.00019178,2]
[346416899,1734952244078,-500.0,0.00019178,2]
[346416900,1734952244088,-500.0,0.00019178,2]
[346416901,1734952244098,-518.97404784,0.00019178,2]
[346416902,1734952244107,-500.0,0.00019178,2]
[346416903,1734952244117,-258.99172813,0.00019178,2]
[346416904,1734952244127,-500.0,0.00019178,2]
[346416905,1734952244136,-563.70867745,0.00019178,2]
[346416906,1734952244145,-500.0,0.00019178,2]
[346416907,1734952244154,-500.0,0.00019178,2]
[346416908,1734952244164,-372.0869195,0.00019178,2]
[346416909,1734952244173,-500.0,0.00019178,2]
[346416910,1734952244182,-500.0,0.00019178,2]
[346416911,1734952244192,-500.0,0.00019178,2]
[346416912,1734952244201,-481.10410441,0.00019178,2]
[346416913,1734952244210,-500.0,0.00019178,2]
[346416914,1734952244219,-248.2716998,0.00019178,2]
[346416915,1734952244228,-500.0,0.00019178,2]
[346416916,1734952244241,-623.75638933,0.00019178,2]
[346416917,1734952244250,-500.0,0.00019178,2]
[346416918,1734952244259,-500.0,0.00019178,2]
[346416919,1734952244268,-500.0,0.00019178,2]
[346416920,1734952244277,-500.0,0.00019178,2]
[346416921,1734952244286,-500.0,0.00019178,2]
[346416922,1734952244295,-500.0,0.00019178,2]
[346416923,1734952244304,-597.23942666,0.00019178,2]
[346416924,1734952244315,-371.94573133,0.00019178,2]
[346416925,1734952244324,-274.54535507,0.00019178,2]
[346416926,1734952244333,-359.85213615,0.00019178,2]
[346416927,1734952244343,-500.0,0.00019178,2]
[346416928,1734952244352,-500.0,0.00019178,2]
[346416929,1734952244361,-789.22,0.00019178,2]
[346416930,1734952244371,-500.0,0.00019178,2]
[346416931,1734952244379,-728.43,0.00019178,2]
[346416932,1734952244388,-500.0,0.00019178,2]
[346416933,1734952244398,-500.0,0.00019178,2]
[346416934,1734952244407,-500.0,0.00019178,2]
[346416935,1734952244419,-502.61697551,0.00019178,2]
[346416936,1734952244428,-500.0,0.00019178,2]
[346416937,1734952244438,-500.0,0.00019178,2]
[346416938,1734952244447,-500.0,0.00019178,2]
[346416939,1734952244456,-500.0,0.00019178,2]
[346416940,1734952244466,-500.0,0.00019178,2]
[346416941,1734952244475,-500.0,0.00019178,2]
[346416942,1734952244484,-620.56601459,0.00019178,2]
[346416943,1734952244493,-500.0,0.00019178,2]
[346416944,1734952244502,-500.0,0.00019178,2]
[346416945,1734952244511,-500.0,0.00019178,2]
[346416946,1734952244519,-500.0,0.00019178,2]
[346416947,1734952244529,-500.0,0.00019178,2]
[346416948,1734952244538,-500.0,0.00019178,2]
[346416949,1734952244547,-500.0,0.00019178,2]
[346416950,1734952244557,-500.0,0.00019178,2]
[346416951,1734952244566,-500.0,0.00019178,2]
[346416952,1734952244575,-644.1,0.00019178,2]
[346416953,1734952244585,-500.0,0.00019178,2]
[346416954,1734952244594,-575.26,0.00019178,2]
[346416955,1734952244603,-500.0,0.00019178,2]
[346416956,1734952244612,-500.0,0.00019178,2]
[346416957,1734952244621,-500.0,0.00019178,2]
[346416958,1734952244630,-500.0,0.00019178,2]
[346416959,1734952244639,-911.7,0.00019178,2]
[346416960,1734952244649,-500.0,0.00019178,2]
[346416961,1734952244658,-500.0,0.00019178,2]
[346416962,1734952244668,-500.0,0.00019178,2]
[346416963,1734952244677,-500.0,0.00019178,2]
[346416964,1734952244686,-500.0,0.00019178,2]
[346416965,1734952244695,-500.0,0.00019178,2]
[346416966,1734952244704,-500.0,0.00019178,2]
[346416967,1734952244714,-500.0,0.00019178,2]
[346416968,1734952244723,-500.0,0.00019178,2]
[346416969,1734952244732,-500.0,0.00019178,2]
[346416970,1734952244741,-500.0,0.00019178,2]
[346416971,1734952244750,-500.0,0.00019178,2]
[346416972,1734952244759,-500.0,0.00019178,2]
[346416973,1734952244769,-500.0,0.00019178,2]
[346416974,1734952244778,-500.0,0.00019178,2]
[346416975,1734952244787,-500.0,0.00019178,2]
[346416976,1734952244796,-500.0,0.00019178,2]
[346416977,1734952244805,-500.0,0.00019178,2]
[346416978,1734952244814,-500.51764521,0.00019178,2]
[346416979,1734952244824,-500.0,0.00019178,2]
[346416980,1734952244833,-500.0,0.00019178,2]
[346416981,1734952244842,-500.0,0.00019178,2]
[346416982,1734952244851,-500.0,0.00019178,2]
[346416983,1734952244860,-500.0,0.00019178,2]
[346416984,1734952244869,-500.0,0.00019178,2]
[346416985,1734952244878,-500.0,0.00019178,2]
[346416986,1734952244887,-500.0,0.00019178,2]
[346416987,1734952244897,-503.9895556,0.00019178,2]
[346416988,1734952244906,-500.0,0.00019178,2]
[346416989,1734952244917,-500.0,0.00019178,2]
[346416990,1734952244926,-500.0,0.00019178,2]
[346416991,1734952244936,-500.0,0.00019178,2]
[346416992,1734952244946,-500.0,0.00019178,2]
[346416993,1734952244956,-500.0,0.00019178,2]
[346416994,1734952244965,-319.07346429,0.00019178,2]
[346416995,1734952244975,-500.0,0.00019178,2]
[346416996,1734952244985,-500.0,0.00019178,2]
[346416997,1734952244994,-500.0,0.00019178,2]
[346416998,1734952245004,-500.0,0.00019178,2]
[346416999,1734952245013,-500.0,0.00019178,2]
[346417000,1734952245022,-525.33,0.00019178,2]
[346417001,1734952245031,-500.0,0.00019178,2]
[346417002,1734952245041,-307.12573288,0.00019178,2]
[346417003,1734952245050,-501.18052356,0.00019178,2]
[346417004,1734952245059,-500.0,0.00019178,2]
[346417005,1734952245068,-500.0,0.00019178,2]
[346417006,1734952245078,-500.0,0.00019178,2]
[346417007,1734952245087,-500.0,0.00019178,2]
[346417008,1734952245097,-500.0,0.00019178,2]
[346417009,1734952245106,-500.0,0.00019178,2]
[346417010,1734952245115,-500.0,0.00019178,2]
[346417011,1734952245124,-500.0,0.00019178,2]
[346417012,1734952245134,-500.0,0.00019178,2]
[346417013,1734952245143,-500.0,0.00019178,2]
[346417014,1734952245153,-500.0,0.00019178,2]
[346417015,1734952245162,-583.36275185,0.00019178,2]
[346417016,1734952245171,-500.0,0.00019178,2]
[346417017,1734952245181,-500.0,0.00019178,2]
[346417018,1734952245190,-500.0,0.00019178,2]
[346417019,1734952245199,-500.0,0.00019178,2]
[346417020,1734952245208,-869.16,0.00019178,2]
[346417021,1734952245218,-506.34323139,0.00019178,2]
[346417022,1734952245227,-500.0,0.00019178,2]
[346417023,1734952245239,-500.0,0.00019178,2]
[346417024,1734952245249,-500.0,0.00019178,2]
[346417025,1734952245259,-500.0,0.00019178,2]
[346417026,1734952245269,-1194.75,0.00019178,2]
[346417027,1734952245279,-752.76,0.00019178,2]
[346417028,1734952245290,-500.0,0.00019178,2]
[346417029,1734952245300,-931.25,0.00019178,2]
[346417030,1734952245309,-500.0,0.00019178,2]
[346417031,1734952245319,-2000.0,0.00019178,15]
[346417032,1734952245328,-500.0,0.00019178,2]
[346417033,1734952245338,-500.0,0.00019178,2]
[346417034,1734952245347,-500.0,0.00019178,2]
[346417035,1734952245356,-500.0,0.00019178,2]
[346417036,1734952245365,-999.22,0.00019178,2]
[346417037,1734952245374,-500.0,0.00019178,2]
[346417038,1734952245384,-500.0,0.00019178,2]
[346417039,1734952245393,-500.0,0.00019178,2]
[346417040,1734952245402,-516.49897049,0.00019178,2]
[346417041,1734952245412,-167.96361328,0.00019178,2]
[346417042,1734952245421,-619.98,0.00019178,2]
[346417043,1734952245431,-500.0,0.00019178,2]
[346417044,1734952245440,-500.0,0.00019178,2]
[346417045,1734952245449,-257.73133268,0.00019178,2]
[346417046,1734952245458,-500.0,0.00019178,2]
[346417047,1734952245467,-500.81499539,0.00019178,2]
[346417048,1734952245477,-500.0,0.00019178,2]
[346417049,1734952245486,-500.0,0.00019178,2]
[346417050,1734952245495,-500.0,0.00019178,2]
[346417051,1734952245504,-500.0,0.00019178,2]
[346417052,1734952245513,-500.0,0.00019178,2]
[346417053,1734952245522,-500.0,0.00019178,2]
[346417054,1734952245532,-500.0,0.00019178,2]
[346417055,1734952245541,-500.0,0.00019178,2]
[346417056,1734952245550,-500.0,0.00019178,2]
[346417057,1734952245559,-500.0,0.00019178,2]
[346417058,1734952245569,-777.49,0.00019178,2]
[346417059,1734952245578,-500.0,0.00019178,2]
[346417060,1734952245587,-500.0,0.00019178,2]
[346417061,1734952245596,-500.0,0.00019178,2]
[346417062,1734952245605,-500.0,0.00019178,2]
[346417063,1734952245614,-694.23,0.00019178,2]
[346417064,1734952245623,-500.0,0.00019178,2]
[346417065,1734952245631,-500.0,0.00019178,2]
[346417066,1734952245641,-500.0,0.00019178,2]
[346417067,1734952245650,-752.78,0.00019178,2]
[346417068,1734952245658,-500.0,0.00019178,2]
[346417069,1734952245670,-500.0,0.00019178,2]
[346417070,1734952245681,-500.0,0.00019178,2]
[346417071,1734952245691,-500.0,0.00019178,2]
[346417072,1734952245699,-622.18,0.00019178,2]
[346417073,1734952245708,-500.0,0.00019178,2]
[346417074,1734952245718,-500.0,0.00019178,2]
[346417075,1734952245727,-500.0,0.00019178,2]
[346417076,1734952245736,-500.0,0.00019178,2]
[346417077,1734952245745,-553.12,0.00019178,2]
[346417078,1734952245754,-500.0,0.00019178,2]
[346417079,1734952245763,-553.76,0.00019178,2]
[346417080,1734952245772,-500.0,0.00019178,2]
[346417081,1734952245781,-500.0,0.00019178,2]
[346417082,1734952245791,-500.0,0.00019178,2]
[346417083,1734952245800,-500.0,0.00019178,2]
[346417084,1734952245809,-504.02174388,0.00019178,2]
[346417085,1734952245819,-500.0,0.00019178,2]
[346417086,1734952245828,-807.52,0.00019178,2]
[346417087,1734952245838,-500.0,0.00019178,2]
[346417088,1734952245847,-500.0,0.00019178,2]
[346417089,1734952245856,-500.0,0.00019178,2]
[346417090,1734952245866,-663.43,0.00019178,2]
[346417091,1734952245875,-500.0,0.00019178,2]
[346417092,1734952245884,-500.0,0.00019178,2]
[346417093,1734952245894,-500.0,0.00019178,2]
[346417094,1734952245903,-500.0,0.00019178,2]
[346417095,1734952245912,-584.16,0.00019178,2]
[346417096,1734952245922,-500.0,0.00019178,2]
[346417099,1734952245931,-500.0,0.00019178,2]
[346417100,1734952245940,-906.78,0.00019178,2]
[346417101,1734952245950,-500.0,0.00019178,2]
[346417102,1734952245959,-334.6498621,0.00019178,2]
[346417103,1734952245968,-500.0,0.00019178,2]
[346417104,1734952245978,-1536.98,0.00019178,2]
[346417105,1734952245987,-500.0,0.00019178,2]
[346417106,1734952245996,-500.0,0.00019178,2]
[346417107,1734952246006,-500.0,0.00019178,2]
[346417108,1734952246015,-500.3252206,0.00019178,2]
[346417109,1734952246024,-501.57,0.00019178,2]
[346417110,1734952246033,-500.0,0.00019178,2]
[346417111,1734952246042,-553.5,0.00019178,2]
[346417112,1734952246051,-410.0651354,0.00019178,2]
[346417113,1734952246061,-500.0,0.00019178,2]
[346417114,1734952246070,-559.01229316,0.00019178,2]
[346417115,1734952246079,-500.0,0.00019178,2]
[346417116,1734952246088,-500.0,0.00019178,2]
[346417117,1734952246098,-500.0,0.00019178,2]
[346417118,1734952246107,-823.59,0.00019178,2]
[346417119,1734952246116,-500.0,0.00019178,2]
[346417120,1734952246125,-500.0,0.00019178,2]
[346417121,1734952246139,-500.0,0.00019178,2]
[346417122,1734952246148,-500.0,0.00019178,2]
[346417123,1734952246157,-500.0,0.00019178,2]
[346417124,1734952246169,-500.0,0.00019178,2]
[346417125,1734952246179,-500.0,0.00019178,2]
[346417126,1734952246188,-500.0,0.00019178,2]
[346417127,1734952246197,-500.0,0.00019178,2]
[346417128,1734952246206,-500.0,0.00019178,2]
[346417129,1734952246216,-500.0,0.00019178,2]
[346417130,1734952246225,-500.0,0.00019178,2]
[346417131,1734952246236,-500.0,0.00019178,2]
[346417132,1734952246248,-500.0,0.00019178,2]
[346417133,1734952246258,-500.0,0.00019178,2]
[346417134,1734952246267,-500.0,0.00019178,2]
[346417135,1734952246276,-770.69,0.00019178,2]
[346417136,1734952246286,-500.0,0.00019178,2]
[346417137,1734952246296,-500.0,0.00019178,2]
[346417138,1734952246306,-500.0,0.00019178,2]
[346417139,1734952246317,-700.0,0.00019178,2]
[346417140,1734952246327,-500.0,0.00019178,2]
[346417141,1734952246336,-500.0,0.00019178,2]
[346417142,1734952246345,-608.32405346,0.00019178,2]
[346417143,1734952246354,-500.0,0.00019178,2]
[346417144,1734952246363,-500.0,0.00019178,2]
[346417145,1734952246373,-850.05,0.00019178,2]
[346417146,1734952246382,-500.0,0.00019178,2]
[346417147,1734952246391,-500.0,0.00019178,2]
[346417148,1734952246400,-500.0,0.00019178,2]
[346417149,1734952246410,-500.0,0.00019178,2]
[346417150,1734952246419,-500.0,0.00019178,2]
[346417151,1734952246428,-500.0,0.00019178,2]
[346417152,1734952246437,-150.0,0.00019178,2]
[346417153,1734952246446,-500.0,0.00019178,2]
[346417154,1734952246455,-500.0,0.00019178,2]
[346417155,1734952246464,-500.0,0.00019178,2]
[346417156,1734952246473,-500.0,0.00019178,2]
[346417157,1734952246483,-500.0,0.00019178,2]
[346417158,1734952246492,-500.99521009,0.00019178,2]
[346417159,1734952246501,-500.0,0.00019178,2]
[346417160,1734952246510,-500.0,0.00019178,2]
[346417161,1734952246519,-5000.0,0.00019178,2]
[346417162,1734952246528,-1828.12,0.00019178,2]
[346417163,1734952246537,-500.0,0.00019178,2]
[346417164,1734952246547,-500.0,0.00019178,2]
[346417165,1734952246556,-847.32,0.00019178,2]
[346417166,1734952246565,-500.0,0.00019178,2]
[346417167,1734952246574,-500.0,0.00019178,2]
[346417168,1734952246584,-500.0,0.00019178,2]
[346417169,1734952246593,-500.0,0.00019178,2]
[346417170,1734952246602,-500.0,0.00019178,2]
[346417171,1734952246611,-500.0,0.00019178,2]
[346417172,1734952246621,-500.0,0.00019178,2]
[346417173,1734952246630,-500.0,0.00019178,2]
[346417174,1734952246640,-500.0,0.00019178,2]
[346417175,1734952246649,-500.0,0.00019178,2]
[346417176,1734952246658,-500.0,0.00019178,2]
[346417177,1734952246669,-1781.12,0.00019178,2]
[346417178,1734952246678,-500.0,0.00019178,2]
[346417179,1734952246687,-500.0,0.00019178,2]
[346417180,1734952246696,-500.0,0.00019178,2]
[346417181,1734952246709,-500.0,0.00019178,2]
[346417183,1734952246725,-883.1,0.00019178,2]
[346417184,1734952246734,-500.0,0.00019178,2]
[346417185,1734952246743,-707.97,0.00019178,2]
[346417186,1734952246753,-500.0,0.00019178,2]
[346417187,1734952246762,-2466.92,0.00019178,2]
[346417188,1734952246771,-500.0,0.00019178,2]
[346417189,1734952246781,-946.7,0.00019178,2]
[346417190,1734952246790,-500.0,0.00019178,2]
[346417191,1734952246799,-758.62,0.00019178,2]
[346417192,1734952246808,-652.52,0.00019178,2]
[346417193,1734952246818,-2251.18,0.00019178,2]
[346417194,1734952246830,-500.0,0.00019178,2]
[346417195,1734952246843,-500.0,0.00019178,2]
[346417196,1734952246854,-500.0,0.00019178,2]
[346417197,1734952246864,-1336.98,0.00019178,2]
[346417198,1734952246873,-500.0,0.00019178,2]
[346417199,1734952246883,-504.39094649,0.00019178,2]
[346417200,1734952246893,-500.0,0.00019178,2]
[346417201,1734952246902,-500.0,0.00019178,2]
[346417202,1734952246912,-500.0,0.00019178,2]
[346417203,1734952246921,-652.36,0.00019178,2]
[346417204,1734952246930,-500.0,0.00019178,2]
[346417205,1734952247191,-965.54,0.00019178,2]
[346417206,1734952247202,-500.0,0.00019178,2]
[346417207,1734952247211,-435.46846542,0.00019178,2]
[346417208,1734952247220,-500.0,0.00019178,2]
[346417209,1734952247229,-414.79137753,0.00019178,2]
[346417210,1734952247242,-500.0,0.00019178,2]
[346417211,1734952247251,-500.0,0.00019178,2]
[346417212,1734952247260,-909.32,0.00019178,2]
[346417213,1734952247269,-500.0,0.00019178,2]
[346417214,1734952247279,-552.88,0.00019178,2]
[346417215,1734952247288,-500.0,0.00019178,2]
[346417216,1734952247297,-500.0,0.00019178,2]
[346417217,1734952247307,-591.12336853,0.00019178,2]
[346417218,1734952247316,-500.0,0.00019178,2]
[346417219,1734952247326,-713.02,0.00019178,2]
[346417220,1734952247335,-500.0,0.00019178,2]
[346417221,1734952247344,-2151.77,0.00019178,2]
[346417222,1734952247353,-500.0,0.00019178,2]
[346417223,1734952247363,-500.0,0.00019178,2]
[346417224,1734952247372,-500.0,0.00019178,2]
[346417225,1734952247381,-500.0,0.00019178,2]
[346417226,1734952247390,-643.3,0.00019178,2]
[346417227,1734952247400,-606.88,0.00019178,2]
[346417228,1734952247409,-500.0,0.00019178,2]
[346417229,1734952247419,-886.56,0.00019178,2]
[346417230,1734952247428,-500.0,0.00019178,2]
[346417231,1734952247437,-500.0,0.00019178,2]
[346417232,1734952247447,-500.0,0.00019178,2]
[346417233,1734952247456,-500.0,0.00019178,2]
[346417234,1734952247465,-500.0,0.00019178,2]
[346417235,1734952247474,-656.4,0.00019178,2]
[346417236,1734952247484,-500.0,0.00019178,2]
[346417237,1734952247493,-633.46,0.00019178,2]
[346417238,1734952247502,-1829.81,0.00019178,2]
[346417239,1734952247511,-500.0,0.00019178,2]
[346417240,1734952247520,-500.0,0.00019178,2]
[346417241,1734952247529,-552.01,0.00019178,2]
[346417242,1734952247538,-500.0,0.00019178,2]
[346417243,1734952247547,-500.0,0.00019178,2]
[346417244,1734952247557,-500.0,0.00019178,2]
[346417245,1734952247566,-534.62,0.00019178,2]
[346417246,1734952247575,-500.0,0.00019178,2]
[346417247,1734952247584,-500.0,0.00019178,2]
[346417248,1734952247594,-500.0,0.00019178,2]
[346417249,1734952247603,-1771.81,0.00019178,2]
[346417250,1734952247612,-500.0,0.00019178,2]
[346417251,1734952247622,-784.25,0.00019178,2]
[346417252,1734952247631,-1314.28,0.00019178,2]
[346417253,1734952247641,-1351.01,0.00019178,2]
[346417254,1734952247651,-500.0,0.00019178,2]
[346417255,1734952247660,-500.0,0.00019178,2]
[346417256,1734952247670,-500.0,0.00019178,2]
[346417257,1734952247680,-500.0,0.00019178,2]
[346417258,1734952247690,-500.0,0.00019178,2]
[346417259,1734952247699,-500.0,0.00019178,2]
[346417260,1734952247708,-500.0,0.00019178,2]
[346417261,1734952247717,-594.23,0.00019178,2]
[346417262,1734952247726,-500.0,0.00019178,2]
[346417263,1734952247735,-571.71,0.00019178,2]
[346417264,1734952247745,-862.33,0.00019178,2]
[346417265,1734952247754,-500.0,0.00019178,2]
[346417266,1734952247763,-500.0,0.00019178,2]
[346417267,1734952247772,-910.6,0.00019178,2]
[346417268,1734952247782,-500.0,0.00019178,2]
[346417269,1734952247791,-500.0,0.00019178,2]
[346417270,1734952247800,-500.0,0.00019178,2]
[346417271,1734952247809,-500.0,0.00019178,2]
[346417272,1734952247819,-500.0,0.00019178,2]
[346417273,1734952247828,-500.0,0.00019178,2]
[346417274,1734952247837,-500.0,0.00019178,2]
[346417275,1734952247846,-500.0,0.00019178,2]
[346417276,1734952247856,-500.0,0.00019178,2]
[346417277,1734952247865,-775.23,0.00019178,2]
[346417278,1734952247874,-500.0,0.00019178,2]
[346417279,1734952247883,-639.09207979,0.00019178,2]
[346417280,1734952247893,-500.0,0.00019178,2]
[346417281,1734952247903,-500.0,0.00019178,2]
[346417282,1734952247913,-1739.11,0.00019178,2]
[346417283,1734952247923,-500.0,0.00019178,2]
[346417284,1734952247933,-500.0,0.00019178,2]
[346417285,1734952247943,-500.0,0.00019178,2]
[346417286,1734952247953,-185.85120151,0.00019178,2]
[346417287,1734952247963,-1500.62,0.00019178,2]
[346417288,1734952247973,-500.0,0.00019178,2]
[346417289,1734952247982,-500.0,0.00019178,2]
[346417290,1734952247992,-500.0,0.00019178,2]
[346417291,1734952248001,-500.0,0.00019178,2]
[346417292,1734952248011,-500.0,0.00019178,2]
[346417293,1734952248020,-500.0,0.00019178,2]
[346417294,1734952248030,-655.12,0.00019178,2]
[346417295,1734952248040,-500.0,0.00019178,2]
[346417296,1734952248050,-500.0,0.00019178,2]
[346417297,1734952248060,-500.0,0.00019178,2]
[346417298,1734952248070,-500.0,0.00019178,2]
[346417299,1734952248080,-500.0,0.00019178,2]
[346417300,1734952248090,-500.0,0.00019178,2]
[346417301,1734952248100,-500.0,0.00019178,2]
[346417302,1734952248109,-678.56,0.00019178,2]
[346417303,1734952248119,-500.0,0.00019178,2]
[346417304,1734952248129,-500.0,0.00019178,2]
[346417305,1734952248139,-500.0,0.00019178,2]
[346417306,1734952248149,-1034.55,0.00019178,2]
[346417307,1734952248159,-500.0,0.00019178,2]
[346417308,1734952248169,-1109.52,0.00019178,2]
[346417309,1734952248179,-500.0,0.00019178,2]
[346417310,1734952248190,-500.0,0.00019178,2]
[346417311,1734952248199,-1537.17,0.00019178,2]
[346417312,1734952248209,-500.0,0.00019178,2]
[346417313,1734952248220,-500.0,0.00019178,2]
[346417314,1734952248230,-500.0,0.00019178,2]
[346417315,1734952248243,-745.6,0.00019178,2]
[346417316,1734952248252,-500.0,0.00019178,2]
[346417317,1734952248262,-500.0,0.00019178,2]
[346417318,1734952248271,-500.0,0.00019178,2]
[346417319,1734952248282,-500.0,0.00019178,2]
[346417320,1734952248291,-500.0,0.00019178,2]
[346417321,1734952248301,-500.0,0.00019178,2]
[346417322,1734952248311,-2178.0,0.00019178,2]
[346417323,1734952248321,-500.0,0.00019178,2]
[346417324,1734952248330,-500.0,0.00019178,2]
[346417325,1734952248340,-500.0,0.00019178,2]
[346417326,1734952248350,-780.86,0.00019178,2]
[346417327,1734952248360,-500.0,0.00019178,2]
[346417328,1734952248370,-563.9,0.00019178,2]
[346417329,1734952248379,-453.62282593,0.00019178,2]
[346417330,1734952248389,-500.0,0.00019178,2]
[346417331,1734952248399,-1116.53,0.00019178,2]
[346417332,1734952248409,-914.06,0.00019178,2]
[346417333,1734952248420,-500.0,0.00019178,2]
[346417334,1734952248430,-500.0,0.00019178,2]
[346417335,1734952248439,-1678.19,0.00019178,2]
[346417336,1734952248449,-500.0,0.00019178,2]